[Event "*** Titled Tuesday Blitz"]
[Site "Chess.com"]
[Date "2021.02.02"]
[Round "6"]
[White "Kale36"]
[Black "catzapto"]
[Result "0-1"]
[WhiteElo "2269"]
[BlackElo "2119"]
[TimeControl "180+1"]
[EndTime "11:09:15 PST"]
[Termination "catzapto won by checkmate"]

1. d4 {[%clk 0:01:45.4]} 1... Nf6 {[%clk 0:02:58.9]} 2. Nc3 {[%clk 0:01:45.6]}
2... e6 {[%clk 0:02:59.6]} 3. Bg5 {[%clk 0:01:45.7]} 3... d5 {[%clk 0:02:59.9]}
4. e4 {[%clk 0:01:45.1]} 4... dxe4 {[%clk 0:02:52.3]} 5. Nxe4 {[%clk 0:01:46]}
5... Be7 {[%clk 0:02:52.8]} 6. Bxf6 {[%clk 0:01:46.4]} 6... Bxf6 {[%clk
0:02:53.2]} 7. Nf3 {[%clk 0:01:47.1]} 7... Be7 {[%clk 0:02:51.6]} 8. c3 {[%clk
0:01:47.5]} 8... O-O {[%clk 0:02:51.4]} 9. Bd3 {[%clk 0:01:47.7]} 9... b6 {[%clk
0:02:49.5]} 10. Qc2 {[%clk 0:01:47.8]} 10... Ba6 {[%clk 0:02:49.3]} 11. O-O-O
{[%clk 0:01:44.1]} 11... Bxd3 {[%clk 0:02:49]} 12. Rxd3 {[%clk 0:01:45]} 12...
Nc6 {[%clk 0:02:43.8]} 13. h4 {[%clk 0:01:41.1]} 13... Na5 {[%clk 0:02:39.5]}
14. Nfg5 {[%clk 0:01:38.2]} 14... h6 {[%clk 0:02:36.8]} 15. Nf6+ {[%clk
0:01:37.8]} 15... Bxf6 {[%clk 0:02:32.6]} 16. Rg3 {[%clk 0:01:35.5]} 16... g6
{[%clk 0:02:16.6]} 17. Nxe6 {[%clk 0:01:34.3]} 17... Qe7 {[%clk 0:01:44.4]} 18.
Nxf8 {[%clk 0:01:16.5]} 18... Kxf8 {[%clk 0:01:31.4]} 19. h5 {[%clk 0:01:15.8]}
19... Bg5+ {[%clk 0:01:21.2]} 20. Kb1 {[%clk 0:01:15]} 20... Re8 {[%clk
0:01:09.5]} 21. Rd1 {[%clk 0:01:04.1]} 21... Qe4 {[%clk 0:01:06.7]} 22. hxg6
{[%clk 0:00:41]} 22... Qxc2+ {[%clk 0:01:04.5]} 23. Kxc2 {[%clk 0:00:41.9]}
23... fxg6 {[%clk 0:01:02.1]} 24. Kd3 {[%clk 0:00:42]} 24... b5 {[%clk
0:00:59.3]} 25. Rf1 {[%clk 0:00:38.8]} 25... Nc4 {[%clk 0:00:58.5]} 26. f4
{[%clk 0:00:34.5]} 26... Nxb2+ {[%clk 0:00:53]} 27. Kc2 {[%clk 0:00:34.5]} 27...
Re2+ {[%clk 0:00:52.1]} 28. Kb3 {[%clk 0:00:34.6]} 28... Be7 {[%clk 0:00:49.7]}
29. Rxg6 {[%clk 0:00:34.3]} 29... a5 {[%clk 0:00:49.8]} 30. c4 {[%clk
0:00:29.7]} 30... Nxc4 {[%clk 0:00:49.7]} 31. a4 {[%clk 0:00:26]} 31... Rb2+
{[%clk 0:00:39.7]} 32. Kc3 {[%clk 0:00:25.3]} 32... Bb4+ {[%clk 0:00:38.4]} 33.
Kd3 {[%clk 0:00:25.5]} 33... Rd2+ {[%clk 0:00:37.8]} 34. Ke4 {[%clk 0:00:25.5]}
34... Re2+ {[%clk 0:00:37.2]} 35. Kd5 {[%clk 0:00:25.5]} 35... Ne3+ {[%clk
0:00:37]} 36. Kc6 {[%clk 0:00:25.1]} 36... Nxf1 {[%clk 0:00:36.9]} 37. axb5
{[%clk 0:00:24.2]} 37... Kf7 {[%clk 0:00:29.5]} 38. Rxh6 {[%clk 0:00:23.4]}
38... Re6+ {[%clk 0:00:27.2]} 39. Rxe6 {[%clk 0:00:21.6]} 39... Kxe6 {[%clk
0:00:28.1]} 40. Kxc7 {[%clk 0:00:22.5]} 40... Kd5 {[%clk 0:00:28.3]} 41. b6
{[%clk 0:00:21.4]} 41... Bd6+ {[%clk 0:00:27.2]} 42. Kc8 {[%clk 0:00:21.2]}
42... Bxf4 {[%clk 0:00:27.4]} 43. g4 {[%clk 0:00:19.1]} 43... Ng3 {[%clk
0:00:24.7]} 44. b7 {[%clk 0:00:19]} 44... a4 {[%clk 0:00:24.1]} 45. g5 {[%clk
0:00:19.1]} 45... Nh5 {[%clk 0:00:23.6]} 46. g6 {[%clk 0:00:13.4]} 46... a3
{[%clk 0:00:22.8]} 47. Kd7 {[%clk 0:00:08.1]} 47... a2 {[%clk 0:00:22.5]} 48.
Ke7 {[%clk 0:00:08.1]} 48... a1=Q {[%clk 0:00:22.5]} 49. Kf7 {[%clk 0:00:08.9]}
49... Qa7 {[%clk 0:00:22]} 50. g7 {[%clk 0:00:05.7]} 50... Qxb7+ {[%clk
0:00:22]} 51. Kg6 {[%clk 0:00:03.2]} 51... Qxg7+ {[%clk 0:00:22]} 52. Kf5 {[%clk
0:00:02.8]} 52... Qg5# {[%clk 0:00:22.9]} 0-1

[Event "*** Titled Tuesday Blitz"]
[Site "Chess.com"]
[Date "2021.02.02"]
[Round "6"]
[White "wonderfultime"]
[Black "mishanick"]
[Result "0-1"]
[WhiteElo "3011"]
[BlackElo "2903"]
[TimeControl "180+1"]
[EndTime "11:09:16 PST"]
[Termination "mishanick won by resignation"]

1. d4 {[%clk 0:03:00.9]} 1... Nf6 {[%clk 0:02:54.9]} 2. Nf3 {[%clk 0:03:01]}
2... d5 {[%clk 0:02:54.9]} 3. Bf4 {[%clk 0:03:01.3]} 3... c5 {[%clk 0:02:55.2]}
4. c3 {[%clk 0:03:01.1]} 4... Nc6 {[%clk 0:02:53.9]} 5. e3 {[%clk 0:03:01.6]}
5... Qb6 {[%clk 0:02:53.7]} 6. Qc2 {[%clk 0:03:02]} 6... g6 {[%clk 0:02:54]} 7.
Nbd2 {[%clk 0:03:01.9]} 7... Bg7 {[%clk 0:02:54.6]} 8. Be2 {[%clk 0:03:02]} 8...
O-O {[%clk 0:02:55]} 9. O-O {[%clk 0:03:02.4]} 9... Rd8 {[%clk 0:02:52.8]} 10.
Qb3 {[%clk 0:02:57.9]} 10... cxd4 {[%clk 0:02:23]} 11. exd4 {[%clk 0:02:50.5]}
11... Qa5 {[%clk 0:02:21.5]} 12. Rfe1 {[%clk 0:02:47.7]} 12... Nh5 {[%clk
0:02:13.4]} 13. Be3 {[%clk 0:02:43.1]} 13... Qc7 {[%clk 0:02:12]} 14. Nf1 {[%clk
0:02:36.8]} 14... Nf4 {[%clk 0:02:10.1]} 15. Ng3 {[%clk 0:02:36.9]} 15... Nxe2+
{[%clk 0:02:08.9]} 16. Nxe2 {[%clk 0:02:36.2]} 16... Bg4 {[%clk 0:02:09.1]} 17.
Nd2 {[%clk 0:02:34.6]} 17... Qd7 {[%clk 0:02:07.3]} 18. Ng3 {[%clk 0:02:28.1]}
18... Rac8 {[%clk 0:02:00.1]} 19. h3 {[%clk 0:02:27.1]} 19... Be6 {[%clk
0:02:00]} 20. Nf3 {[%clk 0:02:25.4]} 20... f6 {[%clk 0:02:00.2]} 21. Bf4 {[%clk
0:02:13.5]} 21... Bf7 {[%clk 0:02:00.5]} 22. Qc2 {[%clk 0:02:14]} 22... Re8
{[%clk 0:01:59.2]} 23. Rad1 {[%clk 0:02:08.1]} 23... e5 {[%clk 0:01:55.3]} 24.
dxe5 {[%clk 0:02:09]} 24... fxe5 {[%clk 0:01:56]} 25. Be3 {[%clk 0:02:09.6]}
25... d4 {[%clk 0:01:55.7]} 26. Qa4 {[%clk 0:01:59.7]} 26... Qd5 {[%clk
0:01:40.1]} 27. b3 {[%clk 0:01:35.6]} 27... Qc5 {[%clk 0:01:37.6]} 28. cxd4
{[%clk 0:01:34.6]} 28... exd4 {[%clk 0:01:38.5]} 29. Bd2 {[%clk 0:01:32]} 29...
d3 {[%clk 0:01:30.5]} 30. Ne4 {[%clk 0:01:29.2]} 30... Qd5 {[%clk 0:01:26.5]}
31. Nc3 {[%clk 0:01:13]} 31... Qf5 {[%clk 0:01:20.7]} 32. Nb5 {[%clk 0:01:01.2]}
32... Qd7 {[%clk 0:01:20.1]} 33. Qf4 {[%clk 0:00:58.4]} 33... Bd5 {[%clk
0:01:14.5]} 34. Nd6 {[%clk 0:00:43.2]} 34... Rxe1+ {[%clk 0:01:09.4]} 35. Nxe1
{[%clk 0:00:29.6]} 35... Rf8 {[%clk 0:01:09.6]} 36. Qg3 {[%clk 0:00:17.6]} 36...
Be5 {[%clk 0:01:09.6]} 37. Qxd3 {[%clk 0:00:18]} 37... Qxd6 {[%clk 0:01:05.4]}
38. Bh6 {[%clk 0:00:14.4]} 38... Rd8 {[%clk 0:01:05]} 39. Bg5 {[%clk 0:00:15]}
39... Bf6 {[%clk 0:01:01.9]} 40. Qxd5+ {[%clk 0:00:11.8]} 40... Qxd5 {[%clk
0:01:01.5]} 41. Rxd5 {[%clk 0:00:12.7]} 41... Rxd5 {[%clk 0:01:01.6]} 42. Bxf6
{[%clk 0:00:13.3]} 42... Rd2 {[%clk 0:01:00.2]} 43. a4 {[%clk 0:00:13.1]} 43...
Rd1 {[%clk 0:01:00.2]} 44. Kf1 {[%clk 0:00:13.4]} 44... Rb1 {[%clk 0:01:00.9]}
45. Ke2 {[%clk 0:00:13.4]} 45... Rxb3 {[%clk 0:01:01.4]} 46. Nd3 {[%clk
0:00:14]} 46... Ra3 {[%clk 0:01:01.7]} 47. Nb2 {[%clk 0:00:13.4]} 47... Kf7
{[%clk 0:00:59.3]} 48. Bh8 {[%clk 0:00:13.9]} 48... Ke6 {[%clk 0:00:58.2]} 49.
f4 {[%clk 0:00:12.5]} 49... Kd5 {[%clk 0:00:56.7]} 50. Nd1 {[%clk 0:00:12.8]}
50... Ra2+ {[%clk 0:00:52.8]} 51. Kf3 {[%clk 0:00:12.2]} 51... Nd4+ {[%clk
0:00:48]} 52. Kg3 {[%clk 0:00:08.8]} 52... Nf5+ {[%clk 0:00:48.1]} 53. Kf3
{[%clk 0:00:09.3]} 53... Ra3+ {[%clk 0:00:45.5]} 54. Kf2 {[%clk 0:00:08.7]}
54... Ke4 {[%clk 0:00:44.2]} 55. g4 {[%clk 0:00:07.6]} 55... Nd4 {[%clk
0:00:40.4]} 56. Kg2 {[%clk 0:00:04.1]} 56... Ne6 {[%clk 0:00:36]} 0-1

[Event "*** Titled Tuesday Blitz"]
[Site "Chess.com"]
[Date "2021.02.02"]
[Round "6"]
[White "xberli"]
[Black "Rogarcia1"]
[Result "1-0"]
[WhiteElo "2496"]
[BlackElo "2260"]
[TimeControl "180+1"]
[EndTime "11:09:17 PST"]
[Termination "xberli won on time"]

1. c4 {[%clk 0:03:00.9]} 1... c6 {[%clk 0:02:58.6]} 2. Nc3 {[%clk 0:02:59.6]}
2... d5 {[%clk 0:02:57.1]} 3. g3 {[%clk 0:02:59.6]} 3... Nf6 {[%clk 0:02:56.5]}
4. Bg2 {[%clk 0:02:51.7]} 4... d4 {[%clk 0:02:48.6]} 5. Ne4 {[%clk 0:02:50.3]}
5... e5 {[%clk 0:02:48.1]} 6. d3 {[%clk 0:02:46.7]} 6... Be7 {[%clk 0:02:46.7]}
7. Nxf6+ {[%clk 0:02:45.6]} 7... Bxf6 {[%clk 0:02:46.2]} 8. Nf3 {[%clk
0:02:46.1]} 8... O-O {[%clk 0:02:45.2]} 9. O-O {[%clk 0:02:46.2]} 9... Re8
{[%clk 0:02:41.8]} 10. b4 {[%clk 0:02:44.2]} 10... Bf5 {[%clk 0:02:38.8]} 11.
Nd2 {[%clk 0:02:42]} 11... Qd6 {[%clk 0:02:28.8]} 12. b5 {[%clk 0:02:36.5]}
12... Nd7 {[%clk 0:02:15.4]} 13. a4 {[%clk 0:02:32.1]} 13... Rab8 {[%clk
0:02:10.9]} 14. a5 {[%clk 0:02:25.7]} 14... c5 {[%clk 0:02:10.8]} 15. Ne4 {[%clk
0:02:20.9]} 15... Bxe4 {[%clk 0:02:01.8]} 16. Bxe4 {[%clk 0:02:21.8]} 16... g6
{[%clk 0:01:58.7]} 17. Bg2 {[%clk 0:02:14]} 17... Bg7 {[%clk 0:01:57.4]} 18. f4
{[%clk 0:01:57.1]} 18... f5 {[%clk 0:01:42.3]} 19. fxe5 {[%clk 0:01:34.3]} 19...
Nxe5 {[%clk 0:01:38.2]} 20. Bf4 {[%clk 0:01:32.1]} 20... Kh8 {[%clk 0:01:33.3]}
21. Qd2 {[%clk 0:01:26.3]} 21... Qe7 {[%clk 0:01:30]} 22. Rae1 {[%clk
0:01:23.1]} 22... Rbd8 {[%clk 0:01:29.5]} 23. h3 {[%clk 0:01:19.9]} 23... Bf6
{[%clk 0:01:13]} 24. a6 {[%clk 0:01:13.6]} 24... b6 {[%clk 0:01:09.4]} 25. Rf2
{[%clk 0:01:02.4]} 25... g5 {[%clk 0:00:50.1]} 26. Bxe5 {[%clk 0:01:02.4]} 26...
Qxe5 {[%clk 0:00:49.5]} 27. Kh2 {[%clk 0:00:54.3]} 27... Rf8 {[%clk 0:00:48.4]}
28. Ref1 {[%clk 0:00:49.9]} 28... Be7 {[%clk 0:00:48.6]} 29. Bd5 {[%clk
0:00:42.8]} 29... h6 {[%clk 0:00:43]} 30. Kg2 {[%clk 0:00:40.6]} 30... Bd6
{[%clk 0:00:42]} 31. Rf3 {[%clk 0:00:37.4]} 31... Rde8 {[%clk 0:00:42.1]} 32.
R1f2 {[%clk 0:00:35.2]} 32... Rf6 {[%clk 0:00:40.5]} 33. Kf1 {[%clk 0:00:30.3]}
33... f4 {[%clk 0:00:27.7]} 34. gxf4 {[%clk 0:00:26.8]} 34... Rxf4 {[%clk
0:00:26.1]} 35. Rxf4 {[%clk 0:00:26.3]} 35... gxf4 {[%clk 0:00:26.2]} 36. Ke1
{[%clk 0:00:24.2]} 36... Rf8 {[%clk 0:00:15.6]} 37. Kd1 {[%clk 0:00:23.4]} 37...
Qe3 {[%clk 0:00:14.2]} 38. Qxe3 {[%clk 0:00:21.3]} 38... dxe3 {[%clk 0:00:14.7]}
39. Rg2 {[%clk 0:00:20.1]} 39... Be5 {[%clk 0:00:13.2]} 40. Rg6 {[%clk
0:00:19.5]} 40... Kh7 {[%clk 0:00:09.6]} 41. Re6 {[%clk 0:00:18.5]} 41... Bd4
{[%clk 0:00:09]} 42. Re7+ {[%clk 0:00:18.2]} 42... Kg6 {[%clk 0:00:08.1]} 43.
Rxa7 {[%clk 0:00:17.9]} 43... Kh5 {[%clk 0:00:04.3]} 44. Rf7 {[%clk 0:00:16]}
44... Rxf7 {[%clk 0:00:01]} 45. Bxf7+ {[%clk 0:00:16.9]} 45... Kh4 {[%clk
0:00:01.1]} 46. a7 {[%clk 0:00:16.5]} 1-0

[Event "*** Titled Tuesday Blitz"]
[Site "Chess.com"]
[Date "2021.02.02"]
[Round "6"]
[White "JTCoach"]
[Black "TimofeevAr"]
[Result "0-1"]
[WhiteElo "2685"]
[BlackElo "2867"]
[TimeControl "180+1"]
[EndTime "11:09:19 PST"]
[Termination "TimofeevAr won by resignation"]

1. d4 {[%clk 0:03:00.9]} 1... d5 {[%clk 0:02:57.9]} 2. Nf3 {[%clk 0:03:00.2]}
2... Nf6 {[%clk 0:02:56.9]} 3. Bf4 {[%clk 0:02:57.8]} 3... e6 {[%clk 0:02:53.7]}
4. e3 {[%clk 0:02:56.8]} 4... c5 {[%clk 0:02:52.6]} 5. Nbd2 {[%clk 0:02:55.7]}
5... Bd6 {[%clk 0:02:49.9]} 6. Bg3 {[%clk 0:02:50.8]} 6... O-O {[%clk
0:02:46.8]} 7. c3 {[%clk 0:02:50.1]} 7... b6 {[%clk 0:02:35.2]} 8. Bd3 {[%clk
0:02:46.7]} 8... Bb7 {[%clk 0:02:34.9]} 9. O-O {[%clk 0:02:39.7]} 9... Nc6
{[%clk 0:02:32.4]} 10. Qe2 {[%clk 0:02:33.9]} 10... Ne7 {[%clk 0:02:27.3]} 11.
Ne5 {[%clk 0:02:20.7]} 11... Nf5 {[%clk 0:02:21.1]} 12. Bxf5 {[%clk 0:02:06.5]}
12... exf5 {[%clk 0:02:21]} 13. Qf3 {[%clk 0:02:02.2]} 13... g6 {[%clk
0:02:14.6]} 14. Bh4 {[%clk 0:02:00.7]} 14... Be7 {[%clk 0:02:14.4]} 15. Rad1
{[%clk 0:01:46.4]} 15... Qc8 {[%clk 0:02:13.8]} 16. Rfe1 {[%clk 0:01:39.6]}
16... h6 {[%clk 0:02:10.1]} 17. Nb3 {[%clk 0:01:28.7]} 17... Kg7 {[%clk
0:02:02.5]} 18. Qe2 {[%clk 0:01:24.2]} 18... g5 {[%clk 0:01:55.2]} 19. Bg3
{[%clk 0:01:23.9]} 19... Ne4 {[%clk 0:01:55.4]} 20. Qh5 {[%clk 0:01:09.9]} 20...
Qe6 {[%clk 0:01:49.9]} 21. Nd2 {[%clk 0:01:02.9]} 21... Nf6 {[%clk 0:01:45.6]}
22. Qe2 {[%clk 0:01:02]} 22... a5 {[%clk 0:01:44]} 23. Qb5 {[%clk 0:00:57.6]}
23... Ba6 {[%clk 0:01:34.6]} 24. Qc6 {[%clk 0:00:55]} 24... Rfc8 {[%clk
0:01:34.4]} 25. Qxe6 {[%clk 0:00:53]} 25... fxe6 {[%clk 0:01:34.7]} 26. f3
{[%clk 0:00:47.3]} 26... a4 {[%clk 0:01:29.3]} 27. Nb1 {[%clk 0:00:38.3]} 27...
Nh5 {[%clk 0:01:18.2]} 28. Bf2 {[%clk 0:00:36.3]} 28... Bd6 {[%clk 0:01:18.3]}
29. Nd3 {[%clk 0:00:33.3]} 29... Bxd3 {[%clk 0:01:14.4]} 30. Rxd3 {[%clk
0:00:32.9]} 30... c4 {[%clk 0:01:10.9]} 31. Rdd1 {[%clk 0:00:32.3]} 31... a3
{[%clk 0:01:11.2]} 32. Rd2 {[%clk 0:00:26.8]} 32... b5 {[%clk 0:01:08.9]} 33.
Rc2 {[%clk 0:00:23.9]} 33... b4 {[%clk 0:01:07.5]} 34. cxb4 {[%clk 0:00:20.3]}
34... Bxb4 {[%clk 0:01:07.4]} 35. Ree2 {[%clk 0:00:19.9]} 35... Rcb8 {[%clk
0:01:02]} 36. bxa3 {[%clk 0:00:17.4]} 36... Bxa3 {[%clk 0:01:01.4]} 37. Nxa3
{[%clk 0:00:17.7]} 37... Rxa3 {[%clk 0:01:01.5]} 38. h3 {[%clk 0:00:16.2]} 38...
f4 {[%clk 0:00:43.6]} 39. e4 {[%clk 0:00:14]} 39... Nf6 {[%clk 0:00:42.4]} 40.
exd5 {[%clk 0:00:12.7]} 40... exd5 {[%clk 0:00:41.3]} 41. Rb2 {[%clk 0:00:12.7]}
41... Rxb2 {[%clk 0:00:38.4]} 42. Rxb2 {[%clk 0:00:13.6]} 42... Kf7 {[%clk
0:00:33.1]} 43. Be1 {[%clk 0:00:13.1]} 43... Nd7 {[%clk 0:00:29.3]} 44. Rb5
{[%clk 0:00:11.6]} 44... Ke6 {[%clk 0:00:28.3]} 45. Rb2 {[%clk 0:00:11.5]} 45...
Rd3 {[%clk 0:00:24.7]} 46. Bf2 {[%clk 0:00:11.2]} 46... Rd1+ {[%clk 0:00:24]}
47. Kh2 {[%clk 0:00:11.2]} 47... Kd6 {[%clk 0:00:23]} 48. a4 {[%clk 0:00:09.3]}
48... Ra1 {[%clk 0:00:21.7]} 49. Rb4 {[%clk 0:00:09.6]} 49... c3 {[%clk
0:00:20.8]} 0-1

[Event "*** Titled Tuesday Blitz"]
[Site "Chess.com"]
[Date "2021.02.02"]
[Round "6"]
[White "rududuyk"]
[Black "Abdimalik_Abdisalimov"]
[Result "1-0"]
[WhiteElo "2154"]
[BlackElo "2309"]
[TimeControl "180+1"]
[EndTime "11:09:19 PST"]
[Termination "rududuyk won by checkmate"]

1. e4 {[%clk 0:03:00.9]} 1... e5 {[%clk 0:02:59.8]} 2. Nf3 {[%clk 0:02:59.9]}
2... Nc6 {[%clk 0:03:00.1]} 3. Bb5 {[%clk 0:03:00]} 3... Nf6 {[%clk 0:03:00]} 4.
O-O {[%clk 0:02:58.9]} 4... Nxe4 {[%clk 0:02:59.1]} 5. d4 {[%clk 0:02:58.8]}
5... Nd6 {[%clk 0:02:56.8]} 6. Bxc6 {[%clk 0:02:58.4]} 6... dxc6 {[%clk
0:02:56.3]} 7. dxe5 {[%clk 0:02:59]} 7... Nf5 {[%clk 0:02:57]} 8. Qxd8+ {[%clk
0:02:58.2]} 8... Kxd8 {[%clk 0:02:57.9]} 9. Nc3 {[%clk 0:02:56.7]} 9... Ke8
{[%clk 0:02:55.9]} 10. h3 {[%clk 0:01:57.4]} 10... h5 {[%clk 0:02:53.1]} 11. Rd1
{[%clk 0:01:10.2]} 11... Be7 {[%clk 0:02:49.2]} 12. Ne2 {[%clk 0:01:07.5]} 12...
Be6 {[%clk 0:02:21.2]} 13. Bg5 {[%clk 0:01:03.8]} 13... Rd8 {[%clk 0:01:45.5]}
14. Rxd8+ {[%clk 0:01:02.1]} 14... Kxd8 {[%clk 0:01:46.4]} 15. Nf4 {[%clk
0:00:58.1]} 15... Bxg5 {[%clk 0:01:34.6]} 16. Nxg5 {[%clk 0:00:57.2]} 16... Ke7
{[%clk 0:01:35.5]} 17. Nfxe6 {[%clk 0:00:51.4]} 17... fxe6 {[%clk 0:01:34.8]}
18. Rd1 {[%clk 0:00:44.5]} 18... c5 {[%clk 0:01:31.1]} 19. f4 {[%clk 0:00:39.5]}
19... Nd4 {[%clk 0:01:28]} 20. c3 {[%clk 0:00:35.7]} 20... Ne2+ {[%clk
0:01:27.2]} 21. Kf2 {[%clk 0:00:34.9]} 21... Nxf4 {[%clk 0:01:27.3]} 22. Ne4
{[%clk 0:00:34.2]} 22... b6 {[%clk 0:01:25.5]} 23. Rd2 {[%clk 0:00:32.8]} 23...
Rd8 {[%clk 0:01:22.4]} 24. Rxd8 {[%clk 0:00:31.1]} 24... Kxd8 {[%clk 0:01:23.3]}
25. Kg3 {[%clk 0:00:29.8]} 25... Nd3 {[%clk 0:01:21.8]} 26. Kh4 {[%clk
0:00:19.7]} 26... Nxe5 {[%clk 0:01:02]} 27. Kxh5 {[%clk 0:00:19.2]} 27... Ke7
{[%clk 0:01:01.5]} 28. g4 {[%clk 0:00:17]} 28... c4 {[%clk 0:01:00.9]} 29. g5
{[%clk 0:00:14.8]} 29... Kf7 {[%clk 0:00:57.2]} 30. h4 {[%clk 0:00:12.8]} 30...
Nd3 {[%clk 0:00:44.5]} 31. Kg4 {[%clk 0:00:10.8]} 31... Nxb2 {[%clk 0:00:43.4]}
32. h5 {[%clk 0:00:11.1]} 32... Nd3 {[%clk 0:00:40.5]} 33. g6+ {[%clk
0:00:11.1]} 33... Ke7 {[%clk 0:00:39.8]} 34. Kg5 {[%clk 0:00:06.8]} 34... Ne5
{[%clk 0:00:35.8]} 35. h6 {[%clk 0:00:06.6]} 35... gxh6+ {[%clk 0:00:35]} 36.
Kxh6 {[%clk 0:00:07.5]} 36... b5 {[%clk 0:00:25]} 37. g7 {[%clk 0:00:06.2]}
37... Nf7+ {[%clk 0:00:14.4]} 38. Kg6 {[%clk 0:00:03.6]} 38... Ne5+ {[%clk
0:00:13.8]} 39. Kh7 {[%clk 0:00:03.4]} 39... b4 {[%clk 0:00:11]} 40. g8=Q {[%clk
0:00:03.9]} 40... bxc3 {[%clk 0:00:10.4]} 41. Nxc3 {[%clk 0:00:04.1]} 41... Kd6
{[%clk 0:00:09.6]} 42. Qg3 {[%clk 0:00:03.9]} 42... Kc5 {[%clk 0:00:10.5]} 43.
Qxe5+ {[%clk 0:00:03.6]} 43... Kb6 {[%clk 0:00:11.2]} 44. Qxe6+ {[%clk
0:00:04.1]} 44... Kb7 {[%clk 0:00:11.8]} 45. Qxc4 {[%clk 0:00:04.1]} 45... c6
{[%clk 0:00:12.3]} 46. Qc5 {[%clk 0:00:04.6]} 46... Kc7 {[%clk 0:00:12]} 47. Na4
{[%clk 0:00:05.5]} 47... Kd7 {[%clk 0:00:11.3]} 48. Kg6 {[%clk 0:00:06.4]} 48...
Kc7 {[%clk 0:00:11.5]} 49. Kf6 {[%clk 0:00:07.3]} 49... Kb7 {[%clk 0:00:12.4]}
50. Ke6 {[%clk 0:00:08.1]} 50... Ka6 {[%clk 0:00:12.7]} 51. Kd6 {[%clk 0:00:09]}
51... Kb7 {[%clk 0:00:11.4]} 52. Qxc6+ {[%clk 0:00:09.9]} 52... Kb8 {[%clk
0:00:12]} 53. Qc7+ {[%clk 0:00:09.9]} 53... Ka8 {[%clk 0:00:12.9]} 54. Qd7
{[%clk 0:00:10.1]} 54... a5 {[%clk 0:00:12.8]} 55. Kc6 {[%clk 0:00:11]} 55...
Kb8 {[%clk 0:00:11.5]} 56. Qb7# {[%clk 0:00:11.9]} 1-0

[Event "*** Titled Tuesday Blitz"]
[Site "Chess.com"]
[Date "2021.02.02"]
[Round "6"]
[White "Jungle_Jaguar"]
[Black "ural58"]
[Result "1-0"]
[WhiteElo "2614"]
[BlackElo "2472"]
[TimeControl "180+1"]
[EndTime "11:09:21 PST"]
[Termination "Jungle_Jaguar won on time"]

1. b3 {[%clk 0:03:00.9]} 1... e5 {[%clk 0:02:55.4]} 2. Bb2 {[%clk 0:03:00.4]}
2... Nc6 {[%clk 0:02:54.9]} 3. e3 {[%clk 0:02:57.4]} 3... d5 {[%clk 0:02:54.2]}
4. Bb5 {[%clk 0:02:56.3]} 4... Bd6 {[%clk 0:02:54.2]} 5. f4 {[%clk 0:02:53.2]}
5... f6 {[%clk 0:02:18.6]} 6. Nf3 {[%clk 0:02:17.7]} 6... exf4 {[%clk
0:01:58.7]} 7. O-O {[%clk 0:02:12.4]} 7... fxe3 {[%clk 0:01:57.7]} 8. Nd4 {[%clk
0:01:56]} 8... Ne7 {[%clk 0:01:53.4]} 9. Qh5+ {[%clk 0:01:50.6]} 9... g6 {[%clk
0:01:51.9]} 10. Qh6 {[%clk 0:01:48.5]} 10... Be5 {[%clk 0:01:08.4]} 11. Nxc6
{[%clk 0:01:28.5]} 11... bxc6 {[%clk 0:01:05.5]} 12. Bxe5 {[%clk 0:01:26.1]}
12... fxe5 {[%clk 0:00:27.8]} 13. Bxc6+ {[%clk 0:01:21.7]} 13... Nxc6 {[%clk
0:00:25.8]} 14. Qg7 {[%clk 0:01:21.4]} 14... Be6 {[%clk 0:00:15.5]} 15. Qxh8+
{[%clk 0:01:18.8]} 15... Ke7 {[%clk 0:00:16.1]} 16. Qxh7+ {[%clk 0:01:12.5]}
16... Kd6 {[%clk 0:00:15.9]} 17. dxe3 {[%clk 0:01:09.6]} 17... Qg5 {[%clk
0:00:15.9]} 18. Rf3 {[%clk 0:01:00.4]} 18... e4 {[%clk 0:00:15.1]} 19. Rg3
{[%clk 0:00:49.6]} 19... Qe5 {[%clk 0:00:15.2]} 20. c3 {[%clk 0:00:50.3]} 20...
Bf5 {[%clk 0:00:12.4]} 21. Na3 {[%clk 0:00:33.4]} 21... a6 {[%clk 0:00:08.5]}
22. Rd1 {[%clk 0:00:31.7]} 22... Rh8 {[%clk 0:00:06.6]} 23. Nc4+ {[%clk
0:00:29.5]} 23... Kc5 {[%clk 0:00:06.6]} 24. Nxe5 {[%clk 0:00:24.4]} 24... Rxh7
{[%clk 0:00:06.8]} 25. Nxc6 {[%clk 0:00:24.6]} 25... Kxc6 {[%clk 0:00:07.4]} 26.
Rd4 {[%clk 0:00:21.1]} 26... Kd6 {[%clk 0:00:06.9]} 27. c4 {[%clk 0:00:20.1]}
27... c6 {[%clk 0:00:07]} 28. cxd5 {[%clk 0:00:20.3]} 28... cxd5 {[%clk
0:00:05.9]} 29. Ra4 {[%clk 0:00:20.8]} 29... Ra7 {[%clk 0:00:05.7]} 30. h4
{[%clk 0:00:19.1]} 30... Kc5 {[%clk 0:00:05.2]} 31. h5 {[%clk 0:00:19.3]} 31...
gxh5 {[%clk 0:00:05.4]} 32. Rg5 {[%clk 0:00:19.9]} 32... Bg4 {[%clk 0:00:05.5]}
33. Ra5+ {[%clk 0:00:20.4]} 33... Kb4 {[%clk 0:00:05.8]} 34. Rgxd5 {[%clk
0:00:20.2]} 34... Rc7 {[%clk 0:00:02.5]} 35. Ra4+ {[%clk 0:00:19.9]} 35... Kc3
{[%clk 0:00:01.7]} 36. Rxa6 {[%clk 0:00:17.8]} 36... Kb2 {[%clk 0:00:01.2]} 37.
Rg6 {[%clk 0:00:08.1]} 37... Rc1+ {[%clk 0:00:02.1]} 38. Kh2 {[%clk 0:00:08.4]}
38... Kxa2 {[%clk 0:00:02.5]} 39. Rd2+ {[%clk 0:00:08.1]} 39... Kxb3 {[%clk
0:00:02.6]} 40. Rf2 {[%clk 0:00:08.1]} 40... Kc3 {[%clk 0:00:03.1]} 41. Kg3
{[%clk 0:00:08.4]} 41... Kd3 {[%clk 0:00:03.4]} 42. Kf4 {[%clk 0:00:08.8]} 42...
Rc5 {[%clk 0:00:03]} 43. Rd6+ {[%clk 0:00:09.2]} 43... Kc4 {[%clk 0:00:03.3]}
44. Kxe4 {[%clk 0:00:09.5]} 44... Rg5 {[%clk 0:00:02.4]} 45. Rd4+ {[%clk
0:00:09.6]} 45... Kc5 {[%clk 0:00:02.5]} 46. Rf8 {[%clk 0:00:07]} 46... Rg7
{[%clk 0:00:01.5]} 47. Kf4 {[%clk 0:00:06.8]} 1-0